bitfinex/quotes_ETHUSD_20240710
["timestamp","ask_amount","ask_price","bid_price","bid_amount"]
[1720636482200,2.3624,3108.5,3107.3,0.61658]
[1720636482397,0.38733441,3108.4,3107.3,0.61658]
[1720636485181,0.38733441,3108.4,3107.4,2.3293]
[1720636485400,0.38733441,3108.4,3107.5,0.294588]
[1720636485604,0.38733441,3108.4,3107.5,3.294588]
[1720636488591,0.38733441,3108.4,3107.5,3.0]
[1720636488925,0.38733441,3108.4,3107.4,5.3293]
[1720636489289,0.38720765,3108.3,3107.4,5.3293]
[1720636489489,0.38720765,3108.4,3107.4,5.3293]
[1720636489724,0.66216842,3108.3,3107.4,5.3293]
[1720636489943,0.38720765,3108.2,3107.4,5.3293]
[1720636490222,0.38720765,3108.2,3107.4,3.0]
[1720636490586,0.38720765,3108.2,3107.0,2.4986]
[1720636490587,0.38720765,3108.2,3107.0,5.4986]
[1720636492791,0.27496077,3108.3,3107.0,5.4986]
[1720636493001,0.38724637,3108.2,3107.0,6.70612501]
[1720636493530,2.351,3108.1,3107.0,4.20752501]
[1720636493693,0.38724637,3108.0,3107.0,4.20752501]
[1720636495812,0.38724637,3108.0,3107.0,3.0]
[1720636496414,1.56544359,3108.0,3107.0,3.0]
[1720636498817,1.56544359,3108.0,3106.7,2.2679]
[1720636499014,2.8993,3107.9,3106.5,6.57665008]
[1720636499215,2.8993,3107.9,3106.2,2.3452]
[1720636499216,2.3493,3107.7,3106.2,2.3452]
[1720636499415,1.56544359,3107.6,3106.2,2.3452]
[1720636499640,2.11544359,3107.6,3106.2,2.3452]
[1720636499914,1.56546376,3107.5,3106.2,2.3452]
[1720636500114,2.2828,3107.3,3106.1,6.57665008]
[1720636500410,0.38738127,3107.2,3106.1,6.57665008]
[1720636500617,0.38738127,3107.2,3106.2,3.0]
[1720636500818,0.38738127,3107.2,3106.0,3.0]
[1720636503320,0.38733709,3107.1,3106.0,3.0]
[1720636503558,2.2828,3107.3,3106.0,3.0]
[1720636503559,2.2828,3107.3,3106.1,0.81419]
[1720636503726,0.38732294,3107.2,3106.1,0.81419]
[1720636503925,2.4704,3107.6,3106.2,2.4145]
[1720636504224,0.38731993,3107.5,3106.3,2.878]
[1720636504427,0.38731993,3107.5,3106.4,3.0]
[1720636504657,0.38731993,3107.5,3106.6,2.4591]
[1720636504863,2.4275,3108.0,3106.6,5.4591]
[1720636505017,0.38730559,3107.9,3106.6,5.4591]
[1720636505516,0.38730559,3107.9,3106.7,2.878]
[1720636505756,0.38730559,3107.9,3106.9,2.3595]
[1720636505934,2.2997,3108.4,3107.0,0.54238573]
[1720636506144,0.38724245,3108.3,3107.1,2.878]
[1720636506467,0.38724245,3108.3,3107.2,3.0]
[1720636506629,2.2997,3108.4,3107.2,3.0]
[1720636506824,0.38722843,3108.3,3107.2,3.0]
[1720636507135,0.38722843,3108.3,3107.3,0.5878]
[1720636507338,1.56554163,3108.3,3107.3,0.5878]
[1720636507564,1.56554163,3108.3,3107.2,3.0]
[1720636507863,1.56554163,3108.3,3107.0,3.54238573]
[1720636509076,0.38722843,3108.3,3107.1,2.878]
[1720636509357,0.38722843,3108.2,3107.2,3.0]
[1720636509661,0.38722843,3108.1,3107.3,0.5878]
[1720636509836,2.2997,3108.4,3107.3,0.5878]
[1720636509837,0.38722843,3108.0,3107.3,0.5878]
[1720636510156,0.33695878,3108.1,3107.3,0.5878]
[1720636510454,0.38722097,3108.0,3107.4,0.35878]
[1720636513370,0.38722097,3108.0,3107.2,3.0]
[1720636513529,0.33695878,3108.1,3107.0,0.54238573]
[1720636513530,0.33695878,3108.1,3107.0,3.54238573]
[1720636513731,0.38726374,3108.0,3107.0,3.54238573]
[1720636514070,0.38726374,3107.9,3107.0,3.54238573]
[1720636514370,0.38726374,3107.8,3107.0,3.54238573]
[1720636514667,0.38726374,3107.7,3107.1,1.24785358]
[1720636514849,0.33695878,3108.1,3107.1,1.24785358]
[1720636515056,0.617907,3107.9,3107.1,1.24785358]
[1720636515239,0.38711485,3107.8,3107.2,0.47902393]
[1720636517250,0.38705831,3107.7,3107.2,0.47902393]
[1720636517455,0.617907,3107.9,3107.2,0.47902393]
[1720636517764,0.38705371,3107.8,3107.2,0.47902393]
[1720636517968,0.38705371,3107.8,3107.3,2.53455187]
[1720636518141,0.617907,3107.9,3107.5,5.2993]
[1720636518329,0.617907,3107.9,3107.7,2.4213]
[1720636526882,1e-08,3107.9,3107.7,2.4213]
[1720636527092,0.33695878,3108.1,3107.8,0.61433362]
[1720636527258,0.33695878,3108.1,3107.9,2.878]
[1720636527580,0.33695878,3108.1,3108.0,0.64923336]
[1720636527776,0.33695878,3108.1,3108.0,3.64923336]
[1720636529555,2.303,3109.0,3108.0,3.64923336]
[1720636529957,0.33691362,3108.5,3108.0,3.64923336]
[1720636530145,2.303,3109.0,3108.0,3.71356591]
[1720636530346,0.3369174,3108.5,3108.1,0.65915659]
[1720636530547,2.303,3109.0,3108.1,0.65915659]
[1720636530885,0.33692029,3108.5,3108.1,0.65915659]
[1720636531183,2.303,3109.0,3108.1,0.65915659]
[1720636531348,0.33691915,3108.5,3108.1,0.65915659]
[1720636531679,2.303,3109.0,3108.2,0.37234891]
[1720636531982,0.33691915,3108.5,3108.2,0.37234891]
[1720636532144,2.303,3109.0,3108.2,0.37234891]
[1720636532487,0.33691933,3108.5,3108.2,0.37234891]
[1720636532687,2.303,3109.0,3108.2,0.43668156]
[1720636532888,0.33691379,3108.5,3108.2,3.25034891]
[1720636533077,1.17832092,3109.9,3108.3,3.39095055]
[1720636533401,1.17832092,3109.9,3108.4,2.3705]
[1720636533402,0.33690565,3108.9,3108.4,2.3705]
[1720636533758,2.4895,3109.5,3108.4,2.3705]
[1720636534485,0.33692088,3109.4,3108.4,2.3705]
[1720636534653,0.33692088,3109.4,3108.5,0.57614505]
[1720636534855,0.33692088,3109.4,3108.5,3.57614505]
[1720636535295,0.33692088,3109.4,3108.7,2.3286]
[1720636535466,0.33692088,3109.4,3108.8,0.06431773]
[1720636535653,0.33692088,3109.4,3108.7,5.3286]
[1720636535859,0.33692088,3109.4,3108.8,1.37066]
[1720636536082,0.33692088,3109.4,3108.8,4.37066]
[1720636536335,0.33692088,3109.4,3109.0,2.878]
[1720636536595,0.33692088,3109.4,3109.1,3.0]
[1720636537675,2.3712,3110.2,3109.1,3.0]
[1720636537856,0.33688633,3109.8,3109.2,0.5878]
[1720636538063,2.3712,3110.2,3109.2,0.5878]
[1720636538402,2.70808998,3110.2,3109.2,0.5878]
[1720636540159,0.38704061,3110.1,3109.2,0.5878]
[1720636541053,0.38704061,3110.1,3108.8,3.82066]
[1720636541482,2.70808998,3110.2,3108.8,3.82066]
[1720636543303,0.38705079,3110.1,3108.8,3.82066]
[1720636543672,2.4207,3110.0,3108.8,3.82066]
[1720636547081,0.3869506,3109.9,3108.8,3.82066]
[1720636547386,0.3869506,3109.9,3108.9,1.27259101]
[1720636547593,2.4207,3110.0,3108.9,1.27259101]
[1720636547910,0.38694344,3109.9,3108.9,1.27259101]
[1720636548423,0.38694344,3109.9,3109.0,2.48122369]
[1720636548591,0.33688998,3110.2,3109.0,5.4169]
[1720636548795,2.3535,3110.0,3109.1,0.6689491]
[1720636549028,2.3535,3110.0,3109.1,3.6689491]
[1720636549327,0.33688998,3110.2,3109.1,3.6689491]
[1720636549487,0.38669799,3110.1,3109.1,3.6689491]
[1720636549691,0.38669799,3110.1,3109.2,0.60858491]
[1720636549890,0.33688998,3110.2,3109.2,0.60858491]
[1720636550728,0.38675355,3110.0,3109.2,0.60858491]
[1720636553543,0.33694007,3110.5,3109.3,2.3876]
[1720636553860,0.33694007,3110.5,3109.3,5.3876]
[1720636554012,0.33694007,3110.5,3109.4,0.59961849]
[1720636554312,0.33694007,3110.5,3109.4,3.59961849]
[1720636555012,2.4289,3110.4,3109.4,3.59961849]
[1720636555850,2.4289,3110.4,3109.4,0.59961849]
[1720636556032,2.4289,3110.4,3109.2,0.60858491]
[1720636557410,2.4289,3110.4,3109.3,0.0643148]
[1720636557733,0.33694007,3110.5,3109.4,2.3561]
[1720636558048,0.33694007,3110.5,3109.5,0.06431009]
[1720636558245,0.33694007,3110.5,3109.4,2.3561]
[1720636558433,0.33694007,3110.5,3109.5,0.59992014]
[1720636558636,0.33694007,3110.5,3109.5,3.53561]
[1720636559026,2.84459298,3110.4,3109.5,3.0]
[1720636559341,0.38649298,3110.3,3109.2,0.60858491]
[1720636560044,0.38649298,3110.3,3109.3,2.3302]
[1720636560245,0.33694007,3110.5,3109.3,5.3302]
[1720636560246,0.38649298,3110.2,3109.3,5.3302]
[1720636560452,0.38649298,3110.1,3109.4,0.59387849]
[1720636560614,0.38649298,3110.0,3109.4,3.59387849]
[1720636560815,0.38649298,3109.9,3109.4,3.59387849]
[1720636561047,0.33694007,3110.5,3109.4,3.59387849]
[1720636561215,0.3864439,3110.4,3109.4,3.59387849]
[1720636561421,0.3864439,3110.4,3109.5,0.59240785]
[1720636562547,0.3864214,3110.3,3109.5,0.59240785]
[1720636562718,0.3864214,3110.2,3109.5,0.59240785]
[1720636562918,0.3864214,3110.1,3109.5,0.59240785]
[1720636563117,2.2624,3110.7,3109.5,0.59240785]
[1720636563118,0.3864214,3110.0,3109.5,0.59240785]
[1720636563318,0.3864214,3109.9,3109.6,0.35924079]
[1720636563522,2.2624,3110.7,3109.6,0.35924079]
[1720636563754,0.38641137,3110.6,3109.6,0.35924079]
[1720636563936,0.38641137,3110.6,3109.7,2.44060652]
[1720636564143,5.5223,3111.0,3109.7,2.44060652]
[1720636564144,0.38641137,3110.5,3109.7,5.3763]
[1720636564456,0.38641137,3110.4,3109.8,0.57355408]
[1720636564660,5.5223,3111.0,3109.8,0.57355408]
[1720636564661,0.38641137,3110.3,3109.8,3.57355408]
[1720636564838,0.38641137,3110.2,3109.8,3.57355408]
[1720636565018,0.38641137,3110.1,3109.8,3.57355408]
[1720636565218,0.38641137,3110.0,3109.8,3.0]
[1720636565448,0.38641137,3109.9,3109.7,2.4021]
[1720636565655,2.4396,3110.9,3109.7,5.4021]
[1720636565854,0.38651571,3110.8,3109.7,5.4021]
[1720636566472,0.38653199,3110.7,3109.7,5.4021]
[1720636566676,0.38653199,3110.6,3109.8,0.57613408]
[1720636566862,0.38653199,3110.6,3109.8,3.0]
[1720636567339,0.38653199,3110.6,3109.6,0.35924079]
[1720636568873,2.2737,3110.5,3109.6,0.35924079]
[1720636569169,0.38653199,3110.4,3109.4,3.0]
[1720636569374,0.38653199,3110.4,3109.2,7.18523499]
[1720636570467,2.878,3110.8,3108.6,2.2869]
[1720636570468,2.4213,3110.2,3108.6,2.2869]
[1720636570676,0.93671362,3110.1,3108.6,2.2869]
[1720636570843,0.38671362,3110.0,3108.6,2.2869]
[1720636571803,0.38671362,3110.0,3108.6,5.2869]
[1720636572390,0.72251498,3110.0,3108.7,1.18635501]
[1720636572692,0.38671362,3109.9,3108.7,4.18635501]
[1720636574300,0.38688206,3109.8,3108.7,4.18635501]
[1720636574596,0.38688206,3109.7,3108.7,4.18635501]
[1720636574765,0.33580136,3110.0,3108.7,4.18635501]
[1720636574766,0.38688206,3109.6,3108.7,4.18635501]
[1720636575105,0.38688206,3109.5,3108.8,0.6473255]
[1720636575400,0.38688206,3109.4,3108.8,0.6473255]
[1720636575706,0.38688206,3109.3,3108.8,0.6473255]
[1720636575865,0.38688206,3109.2,3108.8,0.6473255]
[1720636576065,0.38688206,3109.1,3108.8,0.6473255]
[1720636576296,0.38688206,3109.0,3108.9,0.48336805]
[1720636576509,0.38688206,3109.9,3108.7,3.0]
[1720636576716,2.2539,3109.8,3108.6,5.2869]
[1720636576872,2.2539,3109.6,3108.5,6.57665008]
[1720636577215,2.3643,3109.4,3108.5,6.57665008]
[1720636577508,0.38688206,3109.3,3108.5,6.57665008]
[1720636577683,0.38696665,3109.2,3108.5,6.57665008]
[1720636577890,2.3643,3109.4,3108.5,6.57665008]
[1720636577891,0.38696665,3109.1,3108.5,6.57665008]
[1720636578185,0.38696665,3109.0,3108.5,6.57665008]
[1720636578376,0.38696665,3108.9,3108.5,6.57665008]
[1720636578572,0.38696665,3108.8,3108.5,6.57665008]
[1720636578914,2.3643,3109.4,3108.5,0.65766501]
[1720636578915,0.38696665,3108.7,3108.5,0.65766501]
[1720636579216,0.38696665,3108.6,3108.0,6.57665008]
[1720636579377,0.38696665,3108.5,3108.1,3.0]
[1720636579575,0.38696288,3108.4,3108.1,3.0]
[1720636579807,0.38696288,3108.3,3108.1,3.0]
[1720636579996,0.33689121,3108.4,3108.1,3.0]
[1720636580204,0.38697547,3108.3,3108.2,0.95766501]
[1720636581414,0.38697638,3108.3,3108.1,3.0]
[1720636582031,0.69433738,3108.3,3108.1,3.0]
[1720636582328,0.38697638,3108.2,3108.1,3.0]
[1720636583206,0.307361,3108.3,3108.1,3.0]
[1720636583404,0.38714125,3108.2,3108.1,3.0]
[1720636583607,0.38714125,3108.2,3107.8,2.4473]
[1720636583809,0.38714125,3108.2,3107.9,0.54473]
[1720636584014,0.38714125,3108.2,3107.9,3.54473]
[1720636584330,0.38714125,3108.2,3107.9,0.54473]
[1720636584717,0.307361,3108.3,3107.9,0.54473]
[1720636588515,0.307361,3108.3,3107.7,3.0]
[1720636588842,2.6660843,3108.2,3107.7,3.0]
[1720636588994,2.2789,3108.2,3107.7,3.0]
[1720636589602,0.38718495,3108.1,3107.7,3.0]
[1720636590824,0.38719114,3108.0,3106.9,6.57665008]
[1720636591143,0.307361,3108.3,3106.6,6.57665008]
[1720636591144,2.64949114,3107.9,3106.6,6.57665008]
[1720636591300,2.64949114,3107.9,3106.5,14.8797]
[1720636591301,0.38719114,3107.8,3106.7,0.68093375]
[1720636591496,0.38719114,3107.8,3106.5,2.4197]
[1720636591707,0.38728482,3107.7,3106.5,2.4197]
[1720636591919,3.185361,3108.3,3106.5,2.4197]
[1720636591920,2.65958482,3107.6,3106.5,2.4197]
[1720636592137,0.38728482,3107.5,3106.5,2.4197]
[1720636592302,2.2723,3107.6,3106.5,2.4197]
[1720636592504,0.38726249,3107.5,3106.6,0.24197]
[1720636592698,2.49953,3107.6,3106.6,3.24197]
[1720636592903,0.38724679,3107.5,3106.6,3.24197]
[1720636593335,2.49953,3107.6,3106.6,3.24197]
[1720636593646,0.38718617,3107.5,3106.3,6.57665008]
[1720636594211,2.49953,3107.6,3106.3,6.57665008]
[1720636594414,2.4705,3107.4,3106.3,6.57665008]
[1720636594752,2.4705,3107.4,3106.4,3.0]
[1720636594904,0.24705,3107.3,3106.4,3.0]
[1720636595100,0.5839621,3107.3,3106.4,3.0]
[1720636595305,0.5839621,3107.3,3106.1,3.0]
[1720636596213,0.5839621,3107.3,3106.0,6.57665008]
[1720636597330,2.4967,3107.2,3106.1,0.65766501]
[1720636597562,0.55,3107.1,3105.8,2.2554]
[1720636597863,0.55,3107.1,3105.8,5.2554]
[1720636598066,0.55,3107.1,3105.8,3.0]
[1720636598767,2.4673,3107.0,3105.8,3.0]
[1720636603778,2.4673,3107.0,3105.9,2.2568]
[1720636603991,2.4673,3107.0,3106.0,0.52568]
[1720636604295,2.4673,3107.0,3106.0,3.52568]
[1720636605375,2.4673,3107.0,3106.0,0.52568]
[1720636607076,3.0,3107.6,3106.0,0.59005968]
[1720636607077,2.3666,3107.6,3106.0,0.59005968]
[1720636607273,2.3666,3107.6,3106.0,0.52568]
[1720636608311,2.3596,3107.5,3106.0,0.52568]
[1720636609110,2.3596,3107.3,3106.0,0.52568]
[1720636610018,2.69651008,3107.2,3106.0,0.52568]
[1720636611643,2.69651008,3107.2,3105.8,3.0]
[1720636611802,2.9096,3107.1,3105.8,3.0]
[1720636616847,0.307361,3106.0,3105.8,3.0]
[1720636617249,0.307361,3106.0,3105.5,2.2878]
[1720636619858,0.307361,3106.0,3105.4,3.0]
[1720636620159,0.307361,3106.0,3105.5,0.87822762]
[1720636622361,2.3583,3105.9,3105.5,0.87822762]
[1720636622727,2.3583,3105.9,3105.4,3.0]
[1720636623275,2.3583,3105.9,3105.0,6.57665008]
[1720636623442,2.3583,3105.9,3104.6,6.57665008]
[1720636624630,2.3583,3105.9,3104.7,3.0]
[1720636625854,0.307361,3106.0,3104.8,2.46579873]
[1720636626131,0.307361,3106.0,3105.1,2.4014]
[1720636626325,0.307361,3106.0,3105.1,5.4657932]
[1720636626642,0.307361,3106.0,3105.1,5.4014]
[1720636628738,2.637161,3106.0,3105.1,5.4014]
[1720636629167,2.637161,3106.0,3105.2,3.0]
[1720636629330,2.637161,3106.0,3105.2,0.6]
[1720636629659,2.637161,3106.0,3104.9,3.0]
[1720636629862,0.38738569,3105.9,3104.5,2.3805]
[1720636631176,0.38738569,3105.9,3104.7,3.0]
[1720636632299,2.3149,3105.8,3104.7,3.0]
[1720636632574,0.38738569,3105.7,3104.7,3.0]
[1720636632801,0.38738569,3105.7,3104.8,1.24546501]
[1720636632945,2.3149,3105.8,3104.8,1.24546501]
[1720636633141,0.38732787,3105.7,3104.8,1.24546501]
[1720636634189,2.3149,3105.8,3104.8,1.24546501]
[1720636634373,0.38730631,3105.7,3104.8,1.24546501]
[1720636634693,0.38730631,3105.7,3104.9,0.4245465]
[1720636635043,0.307361,3106.0,3105.0,2.4276]
[1720636635246,0.38723768,3105.9,3105.0,8.3056]
[1720636635545,0.38723768,3105.9,3105.0,3.0]
[1720636635756,0.38723768,3105.9,3104.9,0.4245465]
[1720636635757,0.38723768,3105.9,3105.1,0.34245465]
[1720636635973,0.38723768,3105.9,3104.9,0.4245465]
[1720636636487,0.307361,3106.0,3104.9,0.4245465]
[1720636636647,0.38728472,3105.9,3104.9,0.4245465]
[1720636636988,2.3256,3105.8,3104.9,0.4245465]
[1720636637149,0.38728472,3105.7,3104.9,0.4245465]
[1720636637485,0.38728472,3105.7,3105.0,0.46700115]
[1720636637782,0.38728472,3105.7,3104.9,3.0]
[1720636637783,2.4558,3105.6,3104.9,3.0]
[1720636638007,0.38728472,3105.5,3104.8,1.24546501]
[1720636640192,0.72408332,3105.4,3104.8,1.24546501]
[1720636640485,0.38721759,3105.3,3104.8,1.24546501]
[1720636640692,0.38721759,3105.3,3104.9,0.4245465]
[1720636641972,0.33686573,3105.4,3104.9,0.4245465]
[1720636642152,0.33686573,3105.4,3104.9,3.48894471]
[1720636642350,0.33686573,3105.4,3105.0,2.878]
[1720636642790,0.33686573,3105.4,3105.1,3.0]
[1720636642969,0.33686573,3105.4,3105.2,0.3]
[1720636643164,0.33686573,3105.4,3104.9,3.4245465]
[1720636651591,0.307361,3106.0,3105.1,2.4187]
[1720636651769,0.307361,3106.0,3105.7,2.878]
[1720636651969,0.307361,3106.0,3105.7,5.2967]
[1720636652188,0.307361,3106.0,3105.8,3.0]
[1720636652390,0.307361,3106.0,3105.9,0.82967]
[1720636658716,0.307361,3106.0,3105.9,3.12997]
[1720636658924,0.307361,3106.0,3105.9,6.12997]
[1720636662397,0.3368624,3106.5,3105.9,6.12997]
[1720636662598,2.367,3108.4,3106.2,2.4915]
[1720636662820,2.367,3108.2,3106.7,2.878]
[1720636663132,0.38716859,3108.1,3106.8,3.0]
[1720636663933,0.38716859,3108.1,3106.9,0.06435297]
[1720636664304,2.367,3108.2,3106.9,0.06435297]
[1720636664639,2.6037,3108.2,3107.0,0.3064353]
[1720636664933,2.6037,3108.2,3107.1,2.878]
[1720636665117,2.6037,3108.2,3107.2,3.0]
[1720636665286,0.38709994,3108.1,3107.2,3.0]
[1720636665728,0.38709994,3108.1,3107.0,0.3064353]
[1720636665887,0.29907999,3108.0,3107.0,0.37078827]
[1720636667385,2.367,3108.2,3107.0,0.37078827]
[1720636667642,2.367,3108.2,3107.1,2.94235299]
[1720636667933,2.367,3108.2,3107.2,3.0]
[1720636668137,2.367,3108.2,3107.3,0.06434713]
[1720636668484,2.367,3108.2,3107.2,3.0]
[1720636668689,2.367,3108.2,3107.3,0.5878]
[1720636670408,2.367,3108.2,3107.5,2.878]
[1720636670733,2.3007,3108.9,3107.6,5.41024267]
[1720636671092,2.3007,3108.9,3107.6,5.3459]
[1720636671337,2.3007,3108.9,3107.7,0.82239]
[1720636672717,2.3007,3108.9,3107.8,0.0643369]
[1720636672907,0.306864,3107.9,3107.8,0.0643369]
[1720636673108,0.306864,3107.9,3107.7,0.82239]
[1720636673732,2.3007,3108.9,3107.7,0.82239]
[1720636673933,2.4667,3109.4,3108.2,2.878]
[1720636674139,2.4667,3109.4,3108.3,3.0]
[1720636675132,2.4667,3109.4,3108.4,2.4329]
[1720636679832,2.4667,3109.4,3108.3,3.0]
[1720636681528,2.465,3109.4,3108.3,3.0]
[1720636681704,0.2465,3109.3,3108.3,3.81668]
[1720636683143,2.465,3109.4,3108.3,3.81668]
[1720636688938,2.2631,3110.1,3108.6,2.878]
[1720636689117,2.2631,3110.1,3108.7,3.0]
[1720636689316,2.2631,3110.1,3108.8,0.06431587]
[1720636689516,2.2631,3110.1,3109.0,5.365]
[1720636689732,2.2631,3110.1,3109.1,3.0]
[1720636691458,2.2631,3110.1,3108.9,0.30643159]
[1720636693717,2.2631,3110.1,3108.7,3.0]
[1720636699926,0.33679376,3110.0,3108.7,3.0]
[1720636700131,2.81369376,3110.0,3108.7,3.0]
[1720636701235,2.81369376,3110.0,3108.6,9.45465008]
[1720636702340,2.81369376,3110.0,3108.3,7.39333008]
[1720636702542,3.01756549,3109.9,3108.4,0.73933301]
[1720636702742,2.63106938,3109.9,3108.4,0.73933301]
[1720636703376,2.3297,3109.7,3108.4,0.73933301]
[1720636703681,2.3297,3109.7,3108.4,3.73933301]
[1720636706939,2.3297,3109.7,3108.5,1.12009072]
[1720636707136,2.3297,3109.7,3108.6,0.48594237]
[1720636707380,0.3864319,3109.6,3108.6,0.48594237]
[1720636707539,0.38643977,3109.5,3108.6,0.48594237]
[1720636707739,2.3297,3109.7,3108.6,0.48594237]
[1720636708286,0.38640558,3109.6,3108.7,1.12007854]
[1720636708472,0.38640558,3109.6,3108.6,0.48594237]
[1720636708676,0.38640558,3109.6,3108.7,1.53583801]
[1720636708983,0.38640558,3109.6,3108.7,0.41576044]
[1720636709155,0.38640558,3109.6,3108.8,1.12003724]
[1720636709358,0.38640558,3109.6,3108.7,6.29376044]
[1720636709572,2.3297,3109.7,3108.8,2.86432378]
[1720636709763,2.62569376,3110.0,3108.9,6.78298318]
[1720636709974,2.62569376,3110.0,3109.0,2.80000855]
[1720636709975,0.38638093,3109.9,3109.0,2.80000855]
[1720636710151,0.38638093,3109.9,3109.1,4.12000342]
[1720636710350,0.38638093,3109.9,3109.0,3.0]
[1720636710563,0.38638093,3109.9,3108.9,0.98297463]
[1720636710751,0.38638093,3109.9,3109.0,0.39829746]
[1720636711664,0.38638093,3109.9,3109.1,1.11994162]
[1720636711994,0.38638093,3109.9,3109.0,3.39829746]
[1720636712886,0.38638093,3109.9,3109.1,3.99793244]
[1720636713095,2.62569376,3110.0,3109.2,3.0]
[1720636713398,0.38647674,3109.9,3109.3,0.5878]
[1720636715711,0.38647674,3109.9,3109.3,0.65210664]
[1720636716293,0.38647674,3109.9,3109.5,2.878]
[1720636716497,0.38647674,3109.9,3109.6,3.0]
[1720636716673,0.33679376,3110.0,3109.6,3.0]
[1720636716877,0.33679376,3110.0,3109.7,0.5878]
[1720636717287,0.38657174,3109.9,3109.7,0.5878]
[1720636718299,0.38657174,3109.9,3109.3,0.5878]
[1720636718672,2.3105,3109.8,3109.3,0.5878]
[1720636718878,0.38657174,3109.7,3109.3,0.5878]
[1720636719590,0.33685254,3109.6,3109.3,0.5878]
[1720636719798,0.38657174,3109.5,3109.3,0.5878]
[1720636720012,0.33685254,3109.6,3109.3,0.5878]
[1720636720167,0.38650072,3109.5,3109.3,0.5878]
[1720636721018,0.38651275,3109.4,3109.3,0.5878]
[1720636721335,0.38651275,3109.5,3109.1,5.878]
[1720636721501,0.38651275,3109.4,3109.1,3.0]
[1720636721705,0.38651275,3109.3,3109.1,3.0]
[1720636721904,0.38651275,3109.2,3109.1,3.0]
[1720636722319,0.38651275,3109.2,3109.0,0.39829746]
[1720636722632,0.38651275,3109.1,3109.0,0.39829746]
[1720636722828,0.38651275,3109.5,3109.0,0.39829746]
[1720636723594,0.38655295,3109.4,3109.0,0.39829746]
[1720636723926,0.38655976,3109.3,3109.0,0.39829746]
[1720636724108,0.38655976,3109.2,3109.0,0.39829746]
[1720636724296,0.33685254,3109.6,3109.0,0.39829746]
[1720636724498,0.38654714,3109.5,3109.0,0.39829746]
[1720636724800,0.38654714,3109.5,3109.1,2.878]
[1720636724998,0.38654714,3109.5,3109.2,3.32762975]
[1720636725892,0.38654714,3109.5,3109.2,3.0]
[1720636727127,0.3865742,3109.4,3109.2,3.0]
[1720636727336,0.38657897,3109.3,3109.0,0.39829746]
[1720636727504,0.38657897,3109.2,3109.0,0.39829746]
[1720636727709,0.38657897,3109.1,3109.0,0.39829746]
[1720636728103,0.38657897,3109.5,3109.0,0.39829746]
[1720636728324,0.38657897,3109.4,3109.0,0.39829746]
[1720636728631,0.38657897,3109.3,3109.0,0.39829746]
[1720636728833,0.38657897,3109.2,3109.0,0.39829746]
[1720636728997,0.33685254,3109.6,3109.0,0.39829746]
[1720636728998,0.38657897,3109.1,3109.0,0.39829746]
[1720636729198,0.38657897,3109.1,3108.8,3.0]
[1720636729430,0.38657897,3109.0,3108.7,2.878]
[1720636729728,2.2639,3109.2,3108.7,2.878]
[1720636729729,0.38657897,3108.9,3108.7,2.878]
[1720636729934,0.38657897,3108.8,3108.6,6.57665008]
[1720636730140,2.2639,3109.2,3108.6,6.57665008]
[1720636730141,0.38657897,3108.7,3108.6,6.57665008]
[1720636730436,2.2639,3109.2,3108.6,6.57665008]
[1720636730636,0.38664653,3109.1,3108.6,6.57665008]
[1720636731431,0.38664653,3109.1,3108.7,3.0]
[1720636732393,0.38664653,3109.1,3108.4,3.0]
[1720636734136,0.3864794,3109.0,3108.4,3.0]
[1720636734435,0.3864794,3108.9,3108.4,3.0]
[1720636734649,0.3864794,3108.8,3108.4,3.0]
[1720636734954,0.3864794,3108.7,3108.5,1.24546501]
[1720636735092,0.33688567,3108.9,3108.5,1.24546501]
[1720636735300,0.38648002,3108.8,3108.5,1.24546501]
[1720636736440,0.33688567,3108.9,3108.5,1.24546501]
[1720636738248,0.38648281,3108.8,3108.5,1.24546501]
[1720636738451,0.38648281,3108.8,3108.6,0.4245465]
[1720636738937,0.38645561,3108.7,3108.6,0.4245465]
[1720636739250,0.33688567,3108.9,3108.6,2.7767465]
[1720636739550,0.33688567,3108.9,3108.7,3.0]
[1720636739752,0.33688567,3108.9,3108.8,0.57767465]
[1720636740250,0.7232962,3108.9,3108.8,0.57767465]
[1720636740406,2.2725,3109.6,3108.8,0.57767465]
[1720636740610,0.33691094,3109.4,3108.8,0.57767465]
[1720636740842,0.38642208,3109.3,3108.8,0.57767465]
[1720636741046,0.38642208,3109.3,3108.9,0.64556746]
[1720636741340,0.33691126,3109.8,3108.9,0.64556746]
[1720636741639,0.3863697,3109.7,3108.9,0.64556746]
[1720636742012,0.3863697,3109.7,3108.9,0.70988113]
[1720636742217,0.3863697,3109.7,3109.1,2.878]
[1720636742418,0.38638456,3109.6,3109.2,3.59013081]
[1720636742613,0.38638456,3109.5,3109.3,0.06430997]
[1720636742832,0.33691126,3109.8,3109.3,0.06430997]
[1720636743034,0.3863323,3109.7,3109.3,0.06430997]
[1720636743446,0.3863323,3109.7,3109.5,2.878]
[1720636743767,0.33691126,3109.8,3109.6,5.61013098]
[1720636744063,2.4228,3110.5,3109.6,5.67443166]
[1720636744258,0.72310899,3110.4,3109.6,5.67443166]
[1720636744570,0.38620319,3110.3,3109.7,0.55]
[1720636744734,0.38620319,3110.3,3109.8,0.0642935]
[1720636745839,0.3862233,3110.2,3109.8,0.0642935]
[1720636746035,0.3369058,3110.4,3109.8,0.0642935]
[1720636746245,0.38619024,3110.3,3109.8,0.0642935]
[1720636747026,0.3861741,3110.2,3109.8,0.0642935]
[1720636747228,0.3861741,3110.1,3109.8,0.0642935]
[1720636747419,0.3369058,3110.4,3109.8,0.0642935]
[1720636747643,0.38618814,3110.3,3109.8,0.0642935]
[1720636748935,0.38618814,3110.3,3109.9,2.94229343]
[1720636749268,0.3369058,3110.4,3110.0,3.29422934]
[1720636749418,0.3369058,3110.4,3110.1,0.06428932]
[1720636754173,0.3369058,3110.4,3110.3,2.878]
[1720636754477,1.61280866,3113.0,3110.3,6.428]
[1720636754478,2.3182,3111.7,3110.3,6.428]
[1720636754694,0.385936,3111.6,3110.8,2.878]
[1720636754839,0.385936,3111.6,3110.9,0.06427316]
[1720636755040,0.385936,3111.6,3110.9,3.06427316]
[1720636755649,2.3182,3111.7,3110.9,3.06427316]
[1720636755845,0.38595138,3111.6,3111.0,0.59422732]